bitfinex/quotes_ETHUSD_20250703
["timestamp","ask_amount","ask_price","bid_price","bid_amount"]
[1751554281372,34.85088395,2601.4,2601.3,0.02]
[1751554281570,45.01188395,2601.4,2601.3,0.02]
[1751554281770,18.86177643,2601.4,2601.3,0.02]
[1751554282002,45.01288395,2601.4,2601.3,0.02]
[1751554282204,46.26019484,2601.4,2601.3,0.02]
[1751554282399,35.74772813,2601.4,2601.3,0.02]
[1751554282604,15.01188395,2601.4,2601.3,0.02]
[1751554283374,0.192,2601.4,2601.3,0.02]
[1751554283575,0.75480001,2601.6,2601.3,3.86423173]
[1751554283877,4.03608395,2601.4,2601.3,0.02]
[1751554284075,35.34523884,2601.4,2601.3,0.02]
[1751554284281,36.17283884,2601.4,2601.3,0.02]
[1751554285195,6.17283884,2601.4,2601.3,0.02]
[1751554285514,36.21125917,2601.4,2601.3,0.02]
[1751554285809,36.17283884,2601.4,2601.3,0.02]
[1751554286199,6.17283884,2601.4,2601.3,0.02]
[1751554286399,36.21125917,2601.4,2601.3,0.02]
[1751554286712,36.17283884,2601.4,2601.3,0.02]
[1751554287612,6.17283884,2601.4,2601.3,0.02]
[1751554287821,6.21125917,2601.4,2601.3,0.02]
[1751554288183,36.21125917,2601.4,2601.3,0.02]
[1751554288388,6.17283884,2601.4,2601.3,0.02]
[1751554288691,44.32125917,2601.4,2601.3,0.02]
[1751554288878,44.28283884,2601.4,2601.3,0.02]
[1751554291915,45.52709139,2601.4,2601.3,0.02]
[1751554292295,45.52707253,2601.4,2601.3,0.02]
[1751554292864,66.4646273,2601.4,2601.3,1e-08]
[1751554293141,34.59747951,2601.2,2601.1,1e-08]
[1751554293345,47.79831267,2601.2,2601.1,1e-08]
[1751554294409,47.79818567,2601.2,2601.1,1e-08]
[1751554294619,17.79818567,2601.2,2601.1,1e-08]
[1751554294834,47.79818567,2601.2,2601.1,1e-08]
[1751554295645,3.84452731,2601.1,2601.0,1e-08]
[1751554295847,39.7437538,2601.1,2601.0,1e-08]
[1751554296075,3.84467512,2601.0,2600.9,1e-08]
[1751554296244,34.60021862,2600.7,2600.6,0.02]
[1751554296453,44.75121862,2600.7,2600.6,0.02]
[1751554296656,49.32565071,2600.7,2600.6,0.02]
[1751554297070,49.67485509,2600.7,2600.6,0.02]
[1751554297648,49.96587305,2600.7,2600.6,0.02]
[1751554297974,49.96587305,2600.7,2600.2,0.02]
[1751554297975,34.60110592,2600.1,2600.0,0.02]
[1751554298273,34.60110592,2600.1,2599.6,0.02]
[1751554298274,34.64289768,2599.7,2599.6,0.02]
[1751554298482,44.05905257,2599.7,2599.6,0.02]
[1751554298841,64.99663899,2599.7,2599.6,0.02]
[1751554299179,64.99663899,2599.7,2598.5,0.6444]
[1751554299180,30.0,2598.9,2598.4,3.84844821]
[1751554299339,30.0,2598.9,2598.3,0.192]
[1751554299340,11.95378175,2598.9,2598.3,0.192]
[1751554299536,42.72718175,2598.9,2598.3,3.84866213]
[1751554299740,46.57607423,2598.9,2598.2,4.49315798]
[1751554299942,46.57607423,2598.9,2598.3,3.84865518]
[1751554300142,46.57607423,2598.9,2598.3,3.84859946]
[1751554300376,46.57607423,2598.9,2598.2,0.6444]
[1751554300593,46.57607423,2598.9,2598.4,3.84851217]
[1751554300987,46.57607423,2598.9,2598.4,3.84851224]
[1751554301499,42.72829248,2598.9,2598.5,3.84836534]
[1751554301796,46.57607423,2598.9,2598.3,3.84864445]
[1751554301996,46.57607423,2598.9,2598.0,4.49344759]
[1751554302167,46.57607423,2598.9,2598.0,0.6444]
[1751554302568,46.57607423,2598.9,2598.1,3.84893993]
[1751554302866,46.57607423,2598.9,2598.2,3.84873948]
[1751554303404,46.57607423,2598.9,2598.1,3.84894697]
[1751554303695,46.57607423,2598.9,2598.4,3.84843787]
[1751554304023,0.19266076,2599.8,2598.5,0.6444]
[1751554304163,0.192,2599.0,2598.7,3.84797435]
[1751554304361,0.03842033,2598.9,2598.8,3.85783639]
[1751554304811,0.192,2599.0,2598.9,3.84778175]
[1751554304971,7.99,2599.7,2598.8,0.01]
[1751554305167,0.192,2599.2,2599.1,3.84748566]
[1751554305678,0.192,2599.2,2599.0,0.6444]
[1751554306083,0.192,2599.2,2599.0,4.49202095]
[1751554306304,0.192,2599.2,2599.1,3.84748566]
[1751554306623,10.035,2599.7,2599.0,4.49200298]
[1751554306783,0.03842033,2599.6,2599.5,3.84689363]
[1751554306962,0.03842033,2599.7,2599.6,3.84674565]
[1751554307168,0.03842033,2599.7,2599.5,3.84682273]
[1751554307366,0.03842033,2599.7,2599.6,3.84674565]
[1751554307600,0.192,2599.8,2599.7,3.84659768]
[1751554307811,8.298,2599.8,2599.7,3.84659768]
[1751554308176,8.298,2599.8,2599.6,4.49108475]
[1751554308617,0.192,2599.8,2599.7,3.84659768]
[1751554308776,0.03842033,2600.0,2599.7,0.83378204]
[1751554309105,8.33642033,2600.1,2599.9,3.84620254]
[1751554309303,8.298,2600.1,2599.9,3.84620254]
[1751554309474,8.298,2600.1,2599.6,0.8364]
[1751554309475,0.03842033,2600.0,2599.6,0.8364]
[1751554309878,0.03842033,2600.0,2599.7,3.84654833]
[1751554310100,0.03842033,2600.0,2599.8,3.84642284]
[1751554310604,8.298,2600.1,2599.9,3.84630178]
[1751554310905,0.192,2600.1,2600.0,3.84615384]
[1751554311298,0.192,2600.1,2599.7,4.39653715]
[1751554311608,0.23042033,2600.1,2599.9,3.84628539]
[1751554311802,0.192,2600.1,2599.9,3.84628539]
[1751554312007,0.192,2600.1,2599.8,3.8463807]
[1751554312191,0.23042033,2600.1,2599.8,3.8463807]
[1751554312506,0.23042033,2600.1,2599.8,3.84642691]
[1751554312816,8.33442033,2600.1,2599.9,3.84625553]
[1751554312982,8.316,2600.1,2599.7,0.55]
[1751554313190,8.316,2600.1,2599.7,4.39651763]
[1751554313383,8.316,2600.1,2599.9,3.84629745]
[1751554313796,0.212,2600.1,2600.0,3.84615384]
[1751554314308,0.212,2600.1,2599.9,3.84621695]
[1751554314520,0.212,2600.1,2600.0,3.84615384]
[1751554314681,0.02,2600.1,2599.9,3.8462216]
[1751554314874,0.05842033,2600.1,2599.8,0.192]
[1751554315077,0.05842033,2600.1,2599.8,4.03839297]
[1751554315303,0.05842033,2600.1,2599.9,3.84627536]
[1751554315507,0.05842033,2600.1,2599.8,0.192]
[1751554315699,0.05842033,2600.1,2599.9,3.84623416]
[1751554316315,0.05842033,2600.1,2600.0,3.84615384]
[1751554316624,0.02,2600.1,2600.0,3.84615384]
[1751554316781,0.02,2600.1,2599.9,3.846236]
[1751554316983,0.05842033,2600.1,2599.8,4.03838207]
[1751554317918,0.05842033,2600.1,2600.0,3.84615384]
[1751554317919,0.02,2600.1,2600.0,3.84615384]
[1751554320678,0.02,2600.1,2599.9,3.8461932]
[1751554320918,0.02,2600.1,2600.0,3.84615384]
[1751554321216,0.02,2600.1,2599.9,3.84623737]
[1751554321383,0.02,2600.1,2599.8,4.03836309]
[1751554321589,0.02,2600.1,2599.8,3.8464305]
[1751554321989,0.02,2600.1,2599.9,3.84629765]
[1751554322214,0.02,2600.1,2600.0,3.84615384]
[1751554322383,0.02,2600.1,2599.9,3.84621813]
[1751554322711,0.02,2600.1,2599.7,4.58854431]
[1751554322914,0.02,2600.1,2599.8,3.84642327]
[1751554323120,0.02,2600.1,2599.8,3.84632711]
[1751554323511,3.86605824,2600.1,2599.7,0.192]
[1751554323707,3.86605824,2600.1,2599.3,0.6444]
[1751554323708,8.54506819,2600.0,2599.3,0.6444]
[1751554323913,0.192,2599.7,2599.3,4.4915224]
[1751554324110,0.03842033,2599.6,2599.3,4.4915224]
[1751554324315,0.03842033,2599.6,2599.3,3.8471224]
[1751554324513,0.7742,2599.5,2598.9,0.6444]
[1751554324712,3.88554261,2599.4,2599.0,0.192]
[1751554325020,0.03842033,2599.4,2599.1,3.84748489]
[1751554325794,0.03842033,2599.4,2599.0,0.192]
[1751554325990,3.88548244,2599.4,2599.0,0.192]
[1751554326190,3.88547976,2599.4,2599.0,4.03959521]
[1751554327328,3.88547976,2599.4,2599.0,0.192]
[1751554327622,3.84745437,2599.2,2598.8,0.202]
[1751554327831,3.84778175,2598.9,2598.8,0.01]
[1751554328003,4.03978175,2598.9,2598.8,0.01]
[1751554328190,43.24458363,2598.9,2598.8,0.01]
[1751554328387,43.2061633,2598.9,2598.8,0.01]
[1751554329496,31.26238155,2598.9,2598.8,0.01]
[1751554329697,14.17278175,2598.9,2598.8,0.01]
[1751554331926,0.192,2598.9,2598.8,0.01]
[1751554332245,0.192,2598.9,2598.8,3.85792981]
[1751554332902,0.192,2598.9,2598.8,0.01]
[1751554333450,4.07820208,2598.9,2598.8,0.01]
[1751554333865,0.23042033,2598.9,2598.8,0.01]
[1751554334043,2.038,2599.3,2598.8,0.56]
[1751554334366,0.03842033,2599.2,2599.0,0.6444]
[1751554334659,0.192,2599.4,2599.0,0.6444]
[1751554334660,0.03842033,2599.3,2599.0,4.49202351]
[1751554335151,0.03842033,2599.3,2598.8,0.202]
[1751554335353,3.84736867,2599.2,2598.8,0.202]
[1751554335564,0.03842033,2599.1,2598.8,3.85792877]
[1751554335745,0.03842033,2599.1,2598.8,0.01]
[1751554336934,0.03842033,2599.1,2598.8,3.85791372]
[1751554337133,0.03842033,2599.1,2598.9,3.84771536]
[1751554337328,0.192,2599.2,2598.8,3.85786846]
[1751554337521,0.03842033,2599.1,2598.9,3.84776343]
[1751554337722,0.03842033,2599.1,2598.8,3.85786769]
[1751554337950,0.03842033,2599.1,2598.9,3.84775859]
[1751554338435,0.23042033,2599.2,2598.9,3.84775859]
[1751554338635,0.23042033,2599.2,2598.8,3.8578458]
[1751554339037,5.49864958,2599.2,2598.8,0.01]
[1751554339557,3.84751917,2599.1,2598.8,0.01]
[1751554339756,0.03842033,2599.0,2598.8,0.01]
[1751554339927,4.07812966,2599.0,2598.8,0.01]
[1751554340129,0.23042033,2599.0,2598.8,0.01]
[1751554340329,3.84778175,2598.9,2598.8,0.01]
[1751554340528,5.05380445,2599.0,2598.8,0.01]
[1751554340867,5.09224498,2599.0,2598.8,0.01]
[1751554341231,3.84778175,2598.9,2598.8,0.01]
[1751554341559,5.05382075,2599.0,2598.8,0.01]
[1751554341868,4.81741817,2598.9,2598.8,0.01]
[1751554342640,0.96963642,2598.9,2598.8,0.01]
[1751554343036,4.8558385,2598.9,2598.8,0.01]
[1751554345230,34.8558385,2598.9,2598.8,0.01]
[1751554345554,34.81741817,2598.9,2598.8,0.01]
[1751554346661,35.94845312,2598.9,2598.8,0.01]
[1751554347254,36.84470616,2598.9,2598.8,0.01]
[1751554347464,35.94845312,2598.9,2598.8,0.01]
[1751554349363,46.07470025,2598.9,2598.8,0.01]
[1751554349734,16.07470025,2598.9,2598.8,0.01]
[1751554350049,35.94870025,2598.9,2598.8,0.01]
[1751554350249,5.59841817,2598.9,2598.8,0.01]
[1751554350450,15.7638385,2598.9,2598.8,0.01]
[1751554350679,15.72541817,2598.9,2598.8,0.01]
[1751554351154,45.72541817,2598.9,2598.8,0.01]
[1751554351353,46.07589703,2598.9,2598.8,0.01]
[1751554351670,5.59841817,2598.9,2598.8,0.01]
[1751554351872,0.03842033,2598.9,2598.8,0.01]
[1751554352074,0.192,2599.0,2598.8,0.01]
[1751554352075,12.12664348,2599.0,2598.8,0.01]
[1751554352259,0.7727,2599.4,2598.8,0.01]
[1751554352441,0.35073799,2599.7,2599.0,0.55]
[1751554352644,0.58115832,2599.8,2599.4,3.84690203]
[1751554352848,0.58115832,2599.8,2599.5,3.84687168]
[1751554353038,0.54273799,2599.8,2599.7,3.84659768]
[1751554353241,0.54273799,2599.8,2599.3,0.8364]
[1751554353242,0.192,2599.8,2599.4,0.55]
[1751554353475,3.88511313,2599.7,2599.3,0.8364]
[1751554353775,0.54273799,2599.6,2599.3,0.6444]
[1751554353973,0.03842033,2599.5,2599.3,0.6444]
[1751554354474,32.032,2599.4,2598.8,0.01]
[1751554354678,4.03978175,2598.9,2598.8,0.01]
[1751554354877,12.95194597,2598.9,2598.8,0.01]
[1751554355078,12.91352564,2598.9,2598.8,0.01]
[1751554356162,13.26467723,2598.9,2598.8,0.01]
[1751554356366,12.91352564,2598.9,2598.8,0.01]
[1751554356558,9.06574389,2598.9,2598.8,0.01]
[1751554356759,4.61650636,2599.3,2598.8,3.85781012]
[1751554357081,8.277,2599.1,2598.8,3.8578288]
[1751554357284,0.03842033,2599.0,2598.8,0.01]
[1751554357582,3.8860791,2599.0,2598.8,0.01]
[1751554358184,12.70858175,2598.9,2598.8,0.01]
[1751554359277,13.64971127,2598.9,2598.8,0.01]
[1751554360273,9.80192952,2598.9,2598.8,0.01]
[1751554360489,8.8608,2598.9,2598.8,0.01]
[1751554360696,12.70858175,2598.9,2598.8,0.01]
[1751554361000,8.8608,2598.9,2598.8,0.01]
[1751554361863,8.083,2598.9,2598.8,0.01]
[1751554362064,42.71838175,2598.9,2598.8,0.01]
[1751554362270,46.56727423,2598.9,2598.8,0.01]
[1751554362471,47.466827,2598.9,2598.8,0.01]
[1751554362679,39.383827,2598.9,2598.8,0.01]
[1751554363000,49.497827,2598.9,2598.8,0.01]
[1751554365216,49.84922383,2598.9,2598.8,1e-08]
[1751554365514,57.83922383,2598.9,2598.8,1e-08]
[1751554367600,57.83966438,2598.9,2598.8,1e-08]
[1751554368468,58.13570522,2598.9,2598.8,1e-08]
[1751554370396,48.02170522,2598.9,2598.8,1e-08]
[1751554370601,58.13270522,2598.9,2598.8,1e-08]
[1751554371181,71.08029164,2598.9,2598.8,1e-08]
[1751554371707,34.60337028,2598.3,2598.2,0.01]
[1751554371904,58.56172619,2598.3,2598.2,0.01]
[1751554372602,58.91309984,2598.3,2598.2,0.01]
[1751554372991,59.10434375,2598.3,2598.2,0.01]
[1751554373932,0.89976949,2598.3,2598.2,0.01]
[1751554374216,8.11642033,2598.3,2598.2,0.01]
[1751554374375,8.078,2598.3,2598.2,0.01]
[1751554376081,30.0,2598.9,2598.4,0.6444]
[1751554376300,1.1292198,2598.8,2598.4,1.09470703]
[1751554376579,14.0784265,2598.8,2598.4,0.6444]
[1751554376823,4.04000617,2598.8,2598.4,0.6444]
[1751554377010,0.23042033,2598.8,2598.5,3.84828493]
[1751554377281,4.07842834,2598.8,2598.4,0.6444]
[1751554377590,3.84808357,2598.7,2598.4,0.6444]
[1751554377786,0.03842033,2598.6,2598.4,0.6444]
[1751554378010,0.192,2598.5,2598.4,0.6444]
[1751554378381,0.192,2598.5,2598.2,0.6544]
[1751554378576,0.03842033,2598.4,2598.2,0.6544]
[1751554379625,0.03842033,2598.4,2598.2,4.50320193]
[1751554379984,0.03842033,2598.4,2598.2,0.6544]
[1751554380186,0.03842033,2598.4,2598.3,3.84867028]
[1751554380518,0.02,2598.9,2598.5,0.6444]
[1751554380725,0.212,2598.9,2598.6,3.84815067]
[1751554381230,0.212,2598.9,2598.5,4.49269748]
[1751554381387,0.03842033,2598.8,2598.6,3.84819409]
[1751554381994,0.03842033,2598.8,2598.5,4.49269748]
[1751554382198,0.212,2598.9,2598.8,3.84792981]
[1751554382399,0.02,2598.9,2598.8,4.49232981]
[1751554383022,0.02,2598.9,2598.6,4.49260407]
[1751554383249,0.02,2598.9,2598.6,0.6444]
[1751554383250,0.05842033,2598.9,2598.6,0.6444]
[1751554383452,0.25042033,2598.9,2598.6,0.6444]
[1751554383613,0.25042033,2598.9,2598.6,4.49254851]
[1751554383808,0.25042033,2598.9,2598.7,3.84807446]
[1751554384114,0.212,2598.9,2598.7,3.84807446]
[1751554384740,0.212,2598.9,2598.8,4.39792981]
[1751554384741,0.02,2598.9,2598.8,4.39792981]
[1751554384943,0.02,2598.9,2598.8,5.23432981]
[1751554385543,0.02,2598.9,2598.8,5.2728091]
[1751554386629,0.02,2598.9,2598.8,0.6444]
[1751554386849,0.02,2598.9,2598.8,4.49232981]
[1751554387145,0.02,2598.9,2598.8,5.42897662]
[1751554389133,0.02,2598.9,2598.8,0.6444]
[1751554389346,0.02,2598.9,2598.5,3.84828775]
[1751554389519,0.02,2598.9,2598.4,5.04287923]
[1751554389520,4.09828858,2598.9,2598.4,4.68483889]
[1751554389727,0.212,2598.9,2598.8,4.49232981]
[1751554389931,0.02,2598.9,2598.8,5.91484704]
[1751554391821,0.02,2598.9,2598.8,5.92484704]
[1751554394548,0.02,2598.9,2598.8,13.99184704]
[1751554394755,0.02,2598.9,2598.8,13.95336775]
[1751554394953,1e-08,2598.9,2598.8,23.95336775]
[1751554395668,1e-08,2598.9,2598.8,23.95236775]
[1751554395966,1e-08,2598.9,2598.8,15.88636775]
[1751554399274,1e-08,2598.9,2598.8,15.5754533]
[1751554405262,1e-08,2598.9,2598.8,15.0254533]
[1751554405561,1e-08,2598.9,2598.8,23.6354533]
[1751554407148,1e-08,2598.9,2598.8,15.5754533]
[1751554407462,1e-08,2598.9,2598.8,23.6344533]
[1751554408065,1e-08,2598.9,2598.8,5.5754533]
[1751554408269,1e-08,2598.9,2598.8,13.67193259]
[1751554408434,1e-08,2598.9,2598.8,5.5754533]
[1751554408766,1e-08,2598.9,2598.8,13.67193259]
[1751554409059,1e-08,2598.9,2598.8,13.6334533]
[1751554409258,1e-08,2598.9,2598.8,23.6334533]
[1751554412466,1e-08,2598.9,2598.8,23.6324533]
[1751554412688,1e-08,2598.9,2598.8,5.5754533]
[1751554412972,1e-08,2598.9,2598.8,11.91392981]
[1751554413132,1e-08,2598.9,2598.8,0.01]
[1751554413665,0.75490001,2598.9,2598.8,0.01]
[1751554414941,0.75490001,2598.9,2598.8,3.85792981]
[1751554415254,1e-08,2598.9,2598.8,3.85792981]
[1751554416140,1e-08,2598.9,2598.8,4.40792981]
[1751554416453,1e-08,2598.9,2598.8,4.6384091]
[1751554416841,1e-08,2598.9,2598.8,16.93705492]
[1751554417075,1e-08,2598.9,2598.8,29.84616205]
[1751554417576,1e-08,2598.9,2598.8,31.86416205]
[1751554417766,1e-08,2598.9,2598.8,18.91657563]
[1751554421109,1e-08,2598.9,2598.8,26.96957563]
[1751554421270,1e-08,2598.9,2598.8,16.89857563]
[1751554421456,1e-08,2598.9,2598.8,26.96957563]
[1751554422086,1e-08,2598.9,2598.8,24.95157563]
[1751554423296,1e-08,2598.9,2598.8,16.89857563]
[1751554423595,1e-08,2598.9,2598.8,22.10192981]
[1751554423763,1e-08,2598.9,2598.8,22.65192981]
[1751554423958,1e-08,2598.9,2598.8,4.59992981]
[1751554424187,1e-08,2598.9,2598.8,12.10092981]
[1751554424558,1e-08,2598.9,2598.8,12.65092981]
[1751554425890,1e-08,2598.9,2598.8,4.59992981]
[1751554426193,1e-08,2598.9,2598.8,12.65192981]
[1751554428664,1e-08,2598.9,2598.8,4.59992981]
[1751554428871,1e-08,2598.9,2598.8,12.64992981]
[1751554429899,1e-08,2598.9,2598.8,12.64892981]
[1751554430294,1e-08,2598.9,2598.8,0.202]
[1751554430499,1e-08,2598.9,2598.8,8.251]
[1751554431188,1e-08,2598.9,2598.8,0.01]
[1751554431902,34.62518176,2598.9,2598.8,0.01]
[1751554432090,34.81718176,2598.9,2598.8,0.01]
[1751554432672,4.81718176,2598.9,2598.8,0.01]
[1751554432869,34.85560209,2598.9,2598.8,0.01]
[1751554433075,34.81718176,2598.9,2598.8,0.01]
[1751554433503,8.66607424,2598.9,2598.8,0.01]
[1751554433803,4.81718176,2598.9,2598.8,0.01]
[1751554434008,4.85560209,2598.9,2598.8,0.01]
[1751554434299,34.85560209,2598.9,2598.8,0.01]
[1751554434470,34.81718176,2598.9,2598.8,0.01]
[1751554435302,30.96940001,2598.9,2598.8,0.01]
[1751554435501,0.96940001,2598.9,2598.8,0.01]
[1751554436007,0.96940001,2598.9,2598.8,4.40792981]
[1751554436008,1e-08,2598.9,2598.8,4.40792981]
[1751554436305,1e-08,2598.9,2598.8,4.92292279]
[1751554436682,1e-08,2598.9,2598.8,4.96140208]
[1751554437776,1e-08,2598.9,2598.8,5.60580208]
[1751554437976,1e-08,2598.9,2598.8,13.65280208]
[1751554438310,1e-08,2598.9,2598.8,25.63332279]
[1751554438510,0.02,2600.0,2599.9,3.84630178]
[1751554438707,0.02,2600.0,2599.9,4.03830178]
[1751554442402,0.02,2600.0,2599.9,5.69581539]
[1751554443186,0.02,2600.0,2599.9,6.24581539]
[1751554443500,0.02,2600.0,2599.9,6.2842784]
[1751554444819,0.02,2600.0,2599.9,6.24581539]
[1751554445119,0.02,2600.0,2599.9,14.28781539]
[1751554445316,0.02,2600.0,2599.9,12.63030178]
[1751554445901,0.02,2600.0,2599.9,13.27470178]
[1751554446600,0.02,2600.0,2599.9,12.63030178]
[1751554447921,0.8174,2600.0,2599.3,0.6444]
[1751554448106,0.02,2600.0,2599.9,3.84630178]
[1751554448507,0.02,2600.0,2599.9,3.88476479]
[1751554448709,0.02,2600.0,2599.9,4.43476479]
[1751554449026,0.02,2600.0,2599.9,5.26288385]
[1751554449196,0.02,2600.0,2599.9,13.30288385]
[1751554449393,0.02,2600.0,2599.9,13.26442084]
[1751554449821,0.02,2600.0,2599.9,5.22442084]
[1751554450123,0.02,2600.0,2599.9,13.26342084]
[1751554458099,0.02,2600.0,2599.9,13.45542084]
[1751554459942,0.02,2600.4,2600.3,4.39571011]
[1751554460145,0.02,2600.4,2600.3,15.52668112]
[1751554460330,0.02,2601.1,2601.0,4.39467512]
[1751554460535,0.02,2601.1,2601.0,12.62167512]
[1751554461149,0.02,2601.1,2601.0,4.58667512]
[1751554461540,0.02,2601.1,2601.0,0.192]
[1751554461978,0.02,2601.1,2601.0,4.03667512]
[1751554462469,0.02,2601.1,2601.0,0.192]
[1751554463169,0.02,2601.1,2600.3,0.43957101]
[1751554463345,0.8184,2601.0,2600.8,0.192]
[1751554464474,0.8184,2601.0,2600.9,3.84482294]
[1751554464838,0.8184,2601.0,2600.8,4.03690489]
[1751554465039,0.02,2601.1,2600.9,4.39482294]
[1751554465338,0.02,2601.1,2600.9,4.39475563]
[1751554465536,0.02,2601.1,2600.9,12.42575563]
[1751554466176,0.02,2601.1,2601.0,4.43312187]
[1751554466373,0.02,2601.1,2601.0,4.62512187]
[1751554467179,47.63051373,2601.1,2601.0,0.192]
[1751554467386,3.84585801,2600.2,2600.1,0.192]
[1751554467587,3.84648401,2599.8,2599.3,0.6444]
[1751554467792,3.84648401,2599.8,2599.7,0.192]
[1751554467793,3.84644972,2599.8,2599.7,0.192]
[1751554468098,0.7589,2599.7,2599.2,2.011]
[1751554468393,3.84689363,2599.5,2599.2,0.192]
[1751554468586,3.88554893,2599.4,2598.9,0.01]
[1751554468785,4.07754893,2599.4,2598.9,4.04976953]
[1751554469084,4.07754893,2599.4,2598.9,0.202]
[1751554469290,0.192,2599.4,2599.0,3.84754975]
[1751554469590,0.192,2599.4,2598.9,4.04970918]
[1751554470172,0.192,2599.4,2598.9,4.08818699]
[1751554470363,3.88537123,2599.5,2599.1,3.84741087]
[1751554470364,30.0,2599.5,2599.1,3.84741087]
[1751554470687,4.79756866,2599.7,2599.2,4.0393306]
[1751554470858,4.79763526,2599.7,2599.2,0.192]
[1751554471059,3.84675242,2599.6,2599.2,0.23047337]
[1751554471285,4.79757139,2599.7,2599.2,0.23047337]
[1751554471591,4.79757139,2599.7,2599.2,4.07773814]
[1751554471972,3.84675955,2599.6,2599.2,0.23047337]
[1751554472171,0.03842033,2599.5,2599.2,0.192]
[1751554472369,0.03842033,2599.5,2598.9,0.01]
[1751554472370,0.192,2599.3,2598.9,0.01]
[1751554472575,4.63445009,2599.2,2598.9,0.01]
[1751554472772,33.8476337,2599.0,2598.9,0.01]
[1751554472978,14.0396337,2599.0,2598.9,0.01]
[1751554473291,5.90705601,2599.0,2598.9,0.01]
[1751554473490,0.192,2599.0,2598.9,0.01]
[1751554473690,4.0396337,2599.0,2598.9,0.01]
[1751554474091,0.192,2599.0,2598.9,0.01]
[1751554474795,0.7871,2599.2,2598.9,0.01]
[1751554474796,0.9791,2599.2,2598.9,4.40766774]
[1751554474986,0.7871,2599.2,2598.9,0.752]
[1751554475182,0.192,2599.4,2599.0,3.84761758]
[1751554475393,0.192,2599.4,2599.1,3.84746621]
[1751554475600,0.192,2599.4,2599.0,3.88605002]
[1751554475988,0.192,2599.4,2599.0,0.03847633]
[1751554476192,0.192,2599.4,2599.1,3.84745986]
[1751554476394,0.192,2599.4,2599.0,3.88603221]
[1751554476595,0.192,2599.4,2599.2,3.84732306]
[1751554476902,0.192,2599.4,2598.9,0.24047781]
[1751554477103,0.86552033,2599.3,2598.9,0.202]
[1751554477402,4.7127922,2599.3,2598.9,0.202]
[1751554477795,3.8476337,2599.0,2598.9,0.01]
[1751554478402,0.192,2599.1,2598.9,0.01]
[1751554478704,4.86636424,2599.3,2598.9,0.01]
[1751554478904,4.90478457,2599.3,2598.9,0.01]
[1751554479100,3.84740518,2599.2,2598.9,0.01]
[1751554479277,4.72262415,2599.2,2598.9,0.01]
[1751554479476,0.03842033,2599.1,2598.9,0.01]
[1751554480086,3.88595399,2599.1,2598.9,0.01]
[1751554480405,0.03842033,2599.1,2598.9,0.01]
[1751554480820,0.03842033,2599.2,2598.9,0.01]
[1751554481314,1.0191,2599.3,2598.9,0.01]
[1751554481612,3.84761497,2599.1,2598.9,0.01]
[1751554481908,35.08615756,2599.0,2598.9,0.01]
[1751554482114,4.66017028,2598.3,2598.1,0.01]
[1751554482321,4.69859061,2598.3,2598.1,0.01]
[1751554482482,34.69859061,2598.3,2598.1,0.01]
[1751554482806,33.8491147,2598.0,2597.7,0.01]
[1751554482993,34.60181104,2597.8,2597.7,0.01]
[1751554483505,0.7524,2597.7,2596.7,0.192]
[1751554483707,0.7524,2597.7,2596.1,3.85180749]
[1751554483708,0.192,2596.9,2596.6,3.8511749]
[1751554483878,0.192,2596.9,2596.4,0.192]
[1751554484077,0.192,2596.6,2596.5,3.85127889]
[1751554484492,0.192,2596.8,2596.4,0.192]
[1751554484704,0.03842033,2596.7,2596.0,2.008]
[1751554484892,0.192,2596.7,2596.2,0.192]
[1751554485098,0.192,2596.7,2596.3,3.85159246]
[1751554485410,0.03842033,2596.6,2595.6,2.008]
[1751554485614,0.7955,2597.0,2595.7,3.85252533]
[1751554485615,30.7896,2596.4,2595.7,3.85252533]
[1751554485778,30.7896,2596.4,2595.5,0.6544]
[1751554485779,3.30938033,2596.3,2596.2,3.85175924]
[1751554485980,0.7896,2596.8,2596.7,3.8510417]
[1751554486180,0.192,2596.7,2596.6,3.85112356]
[1751554486520,0.82802033,2596.8,2595.5,0.6544]
[1751554486818,30.0,2596.6,2596.1,3.85190393]
[1751554487024,0.03842033,2596.5,2596.4,3.85148667]
[1751554487179,0.03842033,2596.5,2595.6,0.03852673]
[1751554487180,30.0,2596.6,2595.5,2.008]
[1751554487379,0.8008,2596.3,2595.8,3.85225844]
[1751554487715,0.8008,2596.3,2596.2,3.85178337]
[1751554487885,0.7986,2596.7,2596.6,3.85119001]
[1751554489516,0.80702033,2597.1,2596.3,4.40160128]
[1751554489683,0.88400203,2597.0,2596.5,3.85122954]
[1751554489883,0.03842033,2596.9,2596.6,3.85116234]
[1751554490083,0.03842033,2596.9,2596.3,0.55]
[1751554490084,0.03842033,2596.9,2596.7,3.85102866]
[1751554490413,30.789,2596.7,2595.6,10.043]
[1751554490585,30.0,2596.5,2596.0,3.85208012]
[1751554490911,0.789,2596.3,2595.8,3.85234387]
[1751554491118,0.03842033,2596.2,2596.1,3.85182621]
[1751554491277,0.789,2596.3,2595.7,3.89100718]
[1751554491483,0.82742033,2596.3,2596.2,3.85178337]
[1751554491778,3.0789,2596.6,2596.5,3.85133834]
[1751554491985,0.03842033,2596.6,2595.8,3.85237691]
[1751554492206,0.03842033,2596.6,2595.9,3.8907053]
[1751554492392,0.03842033,2596.6,2596.3,3.85151032]
[1751554492612,0.03842033,2596.6,2596.4,3.8514579]
[1751554492983,0.7945,2596.7,2595.7,0.55]
[1751554492984,0.83292033,2596.7,2595.7,0.55]
[1751554493217,0.83292033,2596.7,2595.6,10.044]
[1751554493218,0.83292033,2596.7,2596.5,3.85122687]
[1751554493390,0.83292033,2596.7,2596.2,3.85163685]
[1751554493594,30.0,2596.6,2596.0,3.85194138]
[1751554493912,0.03842033,2596.5,2596.0,3.85194138]